[Event "Late-Titled-Tuesday-Blitz-February-27-2024"]
[Site "Chess.com"]
[Date "2024.02.27"]
[Round "7"]
[White "northridgehawk"]
[Black "Eloist"]
[Result "1-0"]
[WhiteElo "2288"]
[BlackElo "2439"]
[TimeControl "180+1"]
[EndTime "15:13:01 PST"]
[Termination "northridgehawk won by checkmate"]

1. e4 {[%clk 0:02:28]} 1... e6 {[%clk 0:02:52.1]} 2. Nc3 {[%clk 0:02:26.8]} 2...
d5 {[%clk 0:02:51.7]} 3. Nf3 {[%clk 0:02:27.7]} 3... Nf6 {[%clk 0:02:48.8]} 4.
e5 {[%clk 0:02:27.5]} 4... Nfd7 {[%clk 0:02:48.4]} 5. d4 {[%clk 0:02:28.4]} 5...
c5 {[%clk 0:02:48.5]} 6. dxc5 {[%clk 0:02:29.3]} 6... Nc6 {[%clk 0:02:48.3]} 7.
Bf4 {[%clk 0:02:29.7]} 7... Bxc5 {[%clk 0:02:48.1]} 8. Bd3 {[%clk 0:02:30.4]}
8... f6 {[%clk 0:02:48]} 9. exf6 {[%clk 0:02:30.3]} 9... Qxf6 {[%clk 0:02:48.1]}
10. Bg3 {[%clk 0:02:30.1]} 10... O-O {[%clk 0:02:48]} 11. Qe2 {[%clk 0:02:29.4]}
11... Nd4 {[%clk 0:02:44.7]} 12. Nxd4 {[%clk 0:02:29]} 12... Bxd4 {[%clk
0:02:45.3]} 13. O-O {[%clk 0:02:26]} 13... Nc5 {[%clk 0:02:42.4]} 14. Nb5 {[%clk
0:02:22.1]} 14... Bxb2 {[%clk 0:02:29.2]} 15. Rab1 {[%clk 0:02:21.3]} 15... Bd7
{[%clk 0:02:26.6]} 16. Nc7 {[%clk 0:02:20.1]} 16... Rac8 {[%clk 0:02:23.2]} 17.
Bd6 {[%clk 0:02:16.9]} 17... Rfd8 {[%clk 0:02:11.5]} 18. Rxb2 {[%clk 0:02:06.2]}
18... Qxb2 {[%clk 0:02:10.2]} 19. Be5 {[%clk 0:02:06.6]} 19... Qb4 {[%clk
0:01:41.2]} 20. Bxh7+ {[%clk 0:01:52.8]} 20... Kxh7 {[%clk 0:01:40.3]} 21. Qh5+
{[%clk 0:01:53.4]} 21... Kg8 {[%clk 0:01:39.4]} 22. Qg6 {[%clk 0:01:53.1]} 22...
Kf8 {[%clk 0:01:18.9]} 23. Qxg7# {[%clk 0:01:52.4]} 1-0

[Event "Late-Titled-Tuesday-Blitz-February-27-2024"]
[Site "Chess.com"]
[Date "2024.02.27"]
[Round "7"]
[White "FabianoCaruana"]
[Black "Yaacovn"]
[Result "1-0"]
[WhiteElo "3053"]
[BlackElo "2840"]
[TimeControl "180+1"]
[EndTime "15:13:11 PST"]
[Termination "FabianoCaruana won by resignation"]

1. e4 {[%clk 0:03:00.9]} 1... c6 {[%clk 0:02:58.8]} 2. d4 {[%clk 0:03:00.2]}
2... d5 {[%clk 0:02:59.2]} 3. e5 {[%clk 0:02:59.6]} 3... Bf5 {[%clk 0:02:58.9]}
4. c4 {[%clk 0:03:00.2]} 4... e6 {[%clk 0:02:58.4]} 5. Nc3 {[%clk 0:03:00.9]}
5... Ne7 {[%clk 0:02:57.8]} 6. Nge2 {[%clk 0:03:01.2]} 6... dxc4 {[%clk
0:02:56]} 7. Ng3 {[%clk 0:03:01.2]} 7... Bd3 {[%clk 0:02:44.1]} 8. Bxd3 {[%clk
0:03:00.7]} 8... cxd3 {[%clk 0:02:44.6]} 9. Qxd3 {[%clk 0:03:01.4]} 9... Nd5
{[%clk 0:02:43.5]} 10. O-O {[%clk 0:03:00.9]} 10... Be7 {[%clk 0:02:43.3]} 11.
f4 {[%clk 0:03:00.2]} 11... g6 {[%clk 0:02:37.9]} 12. f5 {[%clk 0:03:00.3]}
12... Nb4 {[%clk 0:02:28.3]} 13. Qe4 {[%clk 0:02:29.6]} 13... exf5 {[%clk
0:02:20.4]} 14. Nxf5 {[%clk 0:02:30.5]} 14... gxf5 {[%clk 0:02:20.7]} 15. Qxf5
{[%clk 0:02:30.9]} 15... Qxd4+ {[%clk 0:02:18.6]} 16. Kh1 {[%clk 0:02:31]} 16...
O-O {[%clk 0:02:07.9]} 17. Bh6 {[%clk 0:02:20]} 17... Qd3 {[%clk 0:02:00]} 18.
Ne4 {[%clk 0:02:15.6]} 18... Qd7 {[%clk 0:00:57]} 19. Nf6+ {[%clk 0:02:07.4]}
19... Bxf6 {[%clk 0:00:56.1]} 20. Qxf6 {[%clk 0:02:08.3]} 20... Qg4 {[%clk
0:00:53.4]} 21. Bxf8 {[%clk 0:02:07.2]} 1-0

[Event "Late-Titled-Tuesday-Blitz-February-27-2024"]
[Site "Chess.com"]
[Date "2024.02.27"]
[Round "7"]
[White "Capablanca_Oujda_2021"]
[Black "Vigg-Sama"]
[Result "0-1"]
[WhiteElo "2507"]
[BlackElo "2276"]
[TimeControl "180+1"]
[EndTime "15:13:15 PST"]
[Termination "Vigg-Sama won by checkmate"]

1. e4 {[%clk 0:02:59.7]} 1... e5 {[%clk 0:02:59.8]} 2. Nf3 {[%clk 0:02:58.3]}
2... Nc6 {[%clk 0:02:59.5]} 3. Bc4 {[%clk 0:02:56.5]} 3... Nf6 {[%clk
0:02:59.2]} 4. Ng5 {[%clk 0:02:51.6]} 4... d5 {[%clk 0:02:58.7]} 5. exd5 {[%clk
0:02:50.9]} 5... Na5 {[%clk 0:02:58.5]} 6. Bb5+ {[%clk 0:02:49]} 6... c6 {[%clk
0:02:58.9]} 7. dxc6 {[%clk 0:02:49.9]} 7... bxc6 {[%clk 0:02:59.8]} 8. Qf3
{[%clk 0:02:48.9]} 8... cxb5 {[%clk 0:02:58.8]} 9. Qxa8 {[%clk 0:02:47.1]} 9...
Qc7 {[%clk 0:02:59.4]} 10. Ne4 {[%clk 0:02:41.4]} 10... Nc6 {[%clk 0:02:59.3]}
11. Nxf6+ {[%clk 0:02:34.8]} 11... gxf6 {[%clk 0:03:00.2]} 12. Nc3 {[%clk
0:02:34.1]} 12... Kd7 {[%clk 0:03:00.3]} 13. Nxb5 {[%clk 0:02:15.9]} 13... Qb6
{[%clk 0:02:55.5]} 14. Nxa7 {[%clk 0:01:46.4]} 14... Bb7 {[%clk 0:02:54.8]} 15.
Qxf8 {[%clk 0:01:06.6]} 15... Rxf8 {[%clk 0:02:53.8]} 16. Nxc6 {[%clk
0:01:07.1]} 16... Qxc6 {[%clk 0:02:52.6]} 17. f3 {[%clk 0:01:01.4]} 17... Qxc2
{[%clk 0:02:50.4]} 18. O-O {[%clk 0:00:57.7]} 18... Rg8 {[%clk 0:02:41.1]} 19.
a4 {[%clk 0:00:53.8]} 19... h5 {[%clk 0:02:25.1]} 20. Ra3 {[%clk 0:00:52.2]}
20... h4 {[%clk 0:02:23.1]} 21. h3 {[%clk 0:00:52.2]} 21... Ba6 {[%clk
0:02:12.9]} 22. d3 {[%clk 0:00:48.9]} 22... Qxg2# {[%clk 0:02:11.9]} 0-1

[Event "Late-Titled-Tuesday-Blitz-February-27-2024"]
[Site "Chess.com"]
[Date "2024.02.27"]
[Round "7"]
[White "Maikrosoft63"]
[Black "alexrustemov"]
[Result "0-1"]
[WhiteElo "2612"]
[BlackElo "2795"]
[TimeControl "180+1"]
[EndTime "15:13:26 PST"]
[Termination "alexrustemov won by resignation"]

1. e4 {[%clk 0:03:00.9]} 1... e6 {[%clk 0:02:58.5]} 2. d4 {[%clk 0:03:00.7]}
2... d5 {[%clk 0:02:59.4]} 3. Nd2 {[%clk 0:03:00.7]} 3... dxe4 {[%clk
0:02:57.2]} 4. Nxe4 {[%clk 0:02:53.9]} 4... Bd7 {[%clk 0:02:58.1]} 5. Nf3 {[%clk
0:02:53.4]} 5... Bc6 {[%clk 0:02:58.4]} 6. Bd3 {[%clk 0:02:51.1]} 6... Nd7
{[%clk 0:02:58.8]} 7. O-O {[%clk 0:02:51]} 7... Ngf6 {[%clk 0:02:59.3]} 8. Nxf6+
{[%clk 0:02:50.2]} 8... Qxf6 {[%clk 0:02:57.9]} 9. Be2 {[%clk 0:02:35.3]} 9...
Bd6 {[%clk 0:02:56.6]} 10. Bg5 {[%clk 0:02:29.7]} 10... Qg6 {[%clk 0:02:55.7]}
11. Bh4 {[%clk 0:02:28.8]} 11... O-O {[%clk 0:02:53.1]} 12. Bg3 {[%clk
0:02:27.2]} 12... Bxg3 {[%clk 0:02:45.3]} 13. hxg3 {[%clk 0:02:28.1]} 13... Rad8
{[%clk 0:02:44.3]} 14. Qc1 {[%clk 0:02:21.8]} 14... Rfe8 {[%clk 0:02:27]} 15. c3
{[%clk 0:02:19.1]} 15... e5 {[%clk 0:02:23.3]} 16. dxe5 {[%clk 0:02:16.7]} 16...
Nxe5 {[%clk 0:02:24.2]} 17. Nxe5 {[%clk 0:02:09.2]} 17... Rxe5 {[%clk
0:02:25.1]} 18. Bf3 {[%clk 0:02:09.1]} 18... Bxf3 {[%clk 0:02:21.8]} 19. gxf3
{[%clk 0:02:10]} 19... Qf5 {[%clk 0:01:58.9]} 20. Rd1 {[%clk 0:01:51.6]} 20...
Rde8 {[%clk 0:01:55.5]} 21. Kg2 {[%clk 0:01:51.6]} 21... h5 {[%clk 0:01:51.1]}
22. Rd4 {[%clk 0:01:39.1]} 22... Re2 {[%clk 0:01:48.7]} 23. Rf4 {[%clk
0:01:30.7]} 23... Qc2 {[%clk 0:01:41.6]} 24. Re4 {[%clk 0:01:20.1]} 24... Rxf2+
{[%clk 0:01:34.7]} 0-1

[Event "Late-Titled-Tuesday-Blitz-February-27-2024"]
[Site "Chess.com"]
[Date "2024.02.27"]
[Round "7"]
[White "Matalon"]
[Black "Unkreativ3"]
[Result "1-0"]
[WhiteElo "2462"]
[BlackElo "2596"]
[TimeControl "180+1"]
[EndTime "15:13:43 PST"]
[Termination "Matalon won by checkmate"]

1. e4 {[%clk 0:02:55.8]} 1... c6 {[%clk 0:02:58.9]} 2. d4 {[%clk 0:02:55]} 2...
d5 {[%clk 0:02:59.2]} 3. Nd2 {[%clk 0:02:55.6]} 3... dxe4 {[%clk 0:02:58.5]} 4.
Nxe4 {[%clk 0:02:54.9]} 4... Bf5 {[%clk 0:02:59.4]} 5. Ng3 {[%clk 0:02:54.4]}
5... Bg6 {[%clk 0:03:00]} 6. f4 {[%clk 0:02:55.1]} 6... e6 {[%clk 0:02:59]} 7.
h4 {[%clk 0:02:55.3]} 7... h6 {[%clk 0:02:55.9]} 8. Nf3 {[%clk 0:02:55.5]} 8...
Nd7 {[%clk 0:02:53.1]} 9. h5 {[%clk 0:02:55.2]} 9... Bh7 {[%clk 0:02:53]} 10.
Bd3 {[%clk 0:02:55.8]} 10... Bxd3 {[%clk 0:02:52.6]} 11. Qxd3 {[%clk 0:02:55.9]}
11... Bd6 {[%clk 0:02:51.7]} 12. Ne4 {[%clk 0:02:55.1]} 12... Bc7 {[%clk
0:02:50.2]} 13. Bd2 {[%clk 0:02:53.5]} 13... Ndf6 {[%clk 0:02:47.4]} 14. c4
{[%clk 0:02:40.7]} 14... Nxe4 {[%clk 0:02:41.6]} 15. Qxe4 {[%clk 0:02:40.5]}
15... Nf6 {[%clk 0:02:42.5]} 16. Qe2 {[%clk 0:02:40.4]} 16... Qe7 {[%clk
0:02:41.1]} 17. O-O-O {[%clk 0:02:37.7]} 17... O-O-O {[%clk 0:02:38.5]} 18. g3
{[%clk 0:02:36.2]} 18... Rhe8 {[%clk 0:02:27.2]} 19. Bc3 {[%clk 0:02:35.2]}
19... a6 {[%clk 0:02:15.2]} 20. Ne5 {[%clk 0:02:34.5]} 20... Bxe5 {[%clk
0:02:10.1]} 21. dxe5 {[%clk 0:02:26.8]} 21... Ng8 {[%clk 0:02:01.7]} 22. Ba5
{[%clk 0:02:03.5]} 22... Rxd1+ {[%clk 0:01:55.3]} 23. Rxd1 {[%clk 0:02:03.9]}
23... f6 {[%clk 0:01:45.9]} 24. Qe3 {[%clk 0:01:52.1]} 24... Kb8 {[%clk
0:01:46.1]} 25. Qb6 {[%clk 0:01:40.1]} 25... fxe5 {[%clk 0:01:37.8]} 26. Bb4
{[%clk 0:01:35.3]} 26... Qf7 {[%clk 0:01:28.7]} 27. Rd8+ {[%clk 0:01:34.1]}
27... Rxd8 {[%clk 0:01:27.9]} 28. Qxd8+ {[%clk 0:01:34.7]} 28... Ka7 {[%clk
0:01:28.5]} 29. Bc5+ {[%clk 0:01:34.9]} 29... b6 {[%clk 0:01:28.9]} 30. Qxb6+
{[%clk 0:01:34.5]} 30... Ka8 {[%clk 0:01:29.4]} 31. Qxa6+ {[%clk 0:01:32.9]}
31... Kb8 {[%clk 0:01:29.9]} 32. Bd6+ {[%clk 0:01:32.1]} 32... Qc7 {[%clk
0:01:30.5]} 33. Qb6+ {[%clk 0:01:32.2]} 33... Kc8 {[%clk 0:01:30.2]} 34. Qxc7#
{[%clk 0:01:32.1]} 1-0

[Event "Late-Titled-Tuesday-Blitz-February-27-2024"]
[Site "Chess.com"]
[Date "2024.02.27"]
[Round "7"]
[White "BabageldiAnnaberdiyev"]
[Black "pooh2012"]
[Result "1/2-1/2"]
[WhiteElo "2642"]
[BlackElo "2484"]
[TimeControl "180+1"]
[EndTime "15:13:46 PST"]
[Termination "Game drawn by repetition"]

1. e4 {[%clk 0:02:58]} 1... c6 {[%clk 0:02:59.7]} 2. d4 {[%clk 0:02:57.4]} 2...
d5 {[%clk 0:02:59.1]} 3. Nd2 {[%clk 0:02:58.3]} 3... dxe4 {[%clk 0:02:58.3]} 4.
Nxe4 {[%clk 0:02:59.2]} 4... Nd7 {[%clk 0:02:58.2]} 5. Bc4 {[%clk 0:02:58.4]}
5... e6 {[%clk 0:02:55]} 6. Nf3 {[%clk 0:02:58]} 6... Ngf6 {[%clk 0:02:54.3]} 7.
Qe2 {[%clk 0:02:57.8]} 7... Nxe4 {[%clk 0:02:52.9]} 8. Qxe4 {[%clk 0:02:58.7]}
8... Bd6 {[%clk 0:02:48]} 9. Bg5 {[%clk 0:02:55]} 9... Nf6 {[%clk 0:02:39.6]}
10. Qh4 {[%clk 0:02:53]} 10... Qa5+ {[%clk 0:02:36.7]} 11. c3 {[%clk 0:02:52.7]}
11... Nd5 {[%clk 0:02:30.4]} 12. O-O {[%clk 0:02:52]} 12... h6 {[%clk
0:02:26.9]} 13. Rfe1 {[%clk 0:02:46]} 13... O-O {[%clk 0:02:12.1]} 14. Bxh6
{[%clk 0:02:41.3]} 14... gxh6 {[%clk 0:02:12.6]} 15. Qxh6 {[%clk 0:02:41.7]}
15... f6 {[%clk 0:01:59.2]} 16. Qg6+ {[%clk 0:02:37]} 16... Kh8 {[%clk 0:01:58]}
17. Qh6+ {[%clk 0:00:57.9]} 17... Kg8 {[%clk 0:01:56.6]} 18. Qg6+ {[%clk
0:00:55.8]} 18... Kh8 {[%clk 0:01:56.5]} 19. Qh6+ {[%clk 0:00:25.7]} 19... Kg8
{[%clk 0:01:55.3]} 1/2-1/2

[Event "Late-Titled-Tuesday-Blitz-February-27-2024"]
[Site "Chess.com"]
[Date "2024.02.27"]
[Round "7"]
[White "Defenstrator"]
[Black "miraitrunks"]
[Result "1-0"]
[WhiteElo "2400"]
[BlackElo "2209"]
[TimeControl "180+1"]
[EndTime "15:13:55 PST"]
[Termination "Defenstrator won by resignation"]

1. d4 {[%clk 0:03:00]} 1... Nf6 {[%clk 0:02:55.4]} 2. g4 {[%clk 0:02:57.7]} 2...
d5 {[%clk 0:02:51.7]} 3. g5 {[%clk 0:02:57]} 3... Ne4 {[%clk 0:02:52.1]} 4. Bf4
{[%clk 0:02:54.2]} 4... c6 {[%clk 0:02:51.6]} 5. Nd2 {[%clk 0:02:46.8]} 5... Bf5
{[%clk 0:02:44.9]} 6. f3 {[%clk 0:02:36.1]} 6... Nd6 {[%clk 0:02:20.4]} 7. Bg2
{[%clk 0:02:26.6]} 7... Qb6 {[%clk 0:01:48.8]} 8. e4 {[%clk 0:02:26.3]} 8... Bg6
{[%clk 0:01:29.5]} 9. h4 {[%clk 0:02:16]} 9... dxe4 {[%clk 0:01:19.5]} 10. fxe4
{[%clk 0:02:04.9]} 10... Qxd4 {[%clk 0:01:15.9]} 11. Ne2 {[%clk 0:01:54.4]}
11... Qb4 {[%clk 0:00:51.6]} 12. h5 {[%clk 0:01:44.1]} 12... Bxe4 {[%clk
0:00:42.7]} 13. Bxd6 {[%clk 0:01:43.7]} 13... Bxg2 {[%clk 0:00:35.4]} 14. Bxb4
{[%clk 0:01:43.2]} 14... Bxh1 {[%clk 0:00:35.9]} 15. Nc4 {[%clk 0:01:28]} 1-0

[Event "Late-Titled-Tuesday-Blitz-February-27-2024"]
[Site "Chess.com"]
[Date "2024.02.27"]
[Round "7"]
[White "rose107"]
[Black "Orion2127989"]
[Result "1-0"]
[WhiteElo "2129"]
[BlackElo "2130"]
[TimeControl "180+1"]
[EndTime "15:13:56 PST"]
[Termination "rose107 won by resignation"]

1. e4 {[%clk 0:03:00.9]} 1... c6 {[%clk 0:02:57]} 2. d4 {[%clk 0:03:00.1]} 2...
d5 {[%clk 0:02:57.2]} 3. exd5 {[%clk 0:03:00.7]} 3... cxd5 {[%clk 0:02:57.8]} 4.
c3 {[%clk 0:03:00.8]} 4... Nf6 {[%clk 0:02:58]} 5. Nf3 {[%clk 0:02:59.4]} 5...
Nc6 {[%clk 0:02:57.6]} 6. Bb5 {[%clk 0:02:58.8]} 6... Qb6 {[%clk 0:02:44.4]} 7.
Qa4 {[%clk 0:02:49.2]} 7... a6 {[%clk 0:02:41.7]} 8. Bxc6+ {[%clk 0:02:48.1]}
8... bxc6 {[%clk 0:02:39]} 9. O-O {[%clk 0:02:46.2]} 9... e6 {[%clk 0:02:31.1]}
10. Bf4 {[%clk 0:02:34.2]} 10... Be7 {[%clk 0:02:29.6]} 11. Nbd2 {[%clk
0:02:31.3]} 11... O-O {[%clk 0:02:28.5]} 12. Rab1 {[%clk 0:02:23]} 12... Bb7
{[%clk 0:02:27.6]} 13. Ne5 {[%clk 0:02:08.4]} 13... c5 {[%clk 0:02:19.4]} 14.
Ndf3 {[%clk 0:02:01.2]} 14... cxd4 {[%clk 0:02:12]} 15. cxd4 {[%clk 0:02:02.1]}
15... Rac8 {[%clk 0:02:09.8]} 16. Bg5 {[%clk 0:01:56.3]} 16... Bc6 {[%clk
0:01:31.8]} 17. Nxc6 {[%clk 0:01:52.1]} 17... Rxc6 {[%clk 0:01:25.8]} 18. Ne5
{[%clk 0:01:45.8]} 18... Rc7 {[%clk 0:00:52.2]} 19. Bxf6 {[%clk 0:01:36.9]} 1-0

[Event "Late-Titled-Tuesday-Blitz-February-27-2024"]
[Site "Chess.com"]
[Date "2024.02.27"]
[Round "7"]
[White "TanitoluwaAps116"]
[Black "Njal28"]
[Result "0-1"]
[WhiteElo "2897"]
[BlackElo "3038"]
[TimeControl "180+1"]
[EndTime "15:14:04 PST"]
[Termination "Njal28 won by resignation"]

1. e4 {[%clk 0:02:53.7]} 1... e5 {[%clk 0:02:59.8]} 2. Nf3 {[%clk 0:02:52.1]}
2... Nc6 {[%clk 0:03:00.2]} 3. Bc4 {[%clk 0:02:51.1]} 3... Bc5 {[%clk
0:02:59.4]} 4. O-O {[%clk 0:02:50.5]} 4... d6 {[%clk 0:02:59.2]} 5. d3 {[%clk
0:02:47.2]} 5... Nf6 {[%clk 0:02:58.9]} 6. c3 {[%clk 0:02:45.8]} 6... a6 {[%clk
0:02:58.8]} 7. a4 {[%clk 0:02:45.7]} 7... Ba7 {[%clk 0:02:59]} 8. Nbd2 {[%clk
0:02:45.7]} 8... O-O {[%clk 0:02:59.5]} 9. h3 {[%clk 0:02:45.8]} 9... Re8 {[%clk
0:03:00]} 10. Re1 {[%clk 0:02:44.1]} 10... Be6 {[%clk 0:03:00.6]} 11. Bxe6
{[%clk 0:02:43.1]} 11... Rxe6 {[%clk 0:03:01.5]} 12. b4 {[%clk 0:02:42.3]} 12...
d5 {[%clk 0:03:01.7]} 13. Qc2 {[%clk 0:02:42.5]} 13... d4 {[%clk 0:03:02.1]} 14.
Nb3 {[%clk 0:01:37.4]} 14... dxc3 {[%clk 0:02:45.4]} 15. Qxc3 {[%clk 0:01:38.3]}
15... Rd6 {[%clk 0:02:40.7]} 16. Nxe5 {[%clk 0:01:31.8]} 16... Nxe5 {[%clk
0:02:27.1]} 17. Qxe5 {[%clk 0:01:32.7]} 17... Rxd3 {[%clk 0:02:22.2]} 18. Nc5
{[%clk 0:01:31.9]} 18... Nd7 {[%clk 0:02:20.5]} 19. Qf5 {[%clk 0:00:36.9]} 19...
g6 {[%clk 0:02:11.1]} 20. Qf4 {[%clk 0:00:26.3]} 20... Nxc5 {[%clk 0:02:08.5]}
21. bxc5 {[%clk 0:00:27.2]} 21... Bxc5 {[%clk 0:02:07.8]} 22. Bb2 {[%clk
0:00:24.9]} 22... Rd2 {[%clk 0:01:58.1]} 23. Bf6 {[%clk 0:00:16.1]} 23... Rxf2
{[%clk 0:01:51.5]} 0-1

[Event "Late-Titled-Tuesday-Blitz-February-27-2024"]
[Site "Chess.com"]
[Date "2024.02.27"]
[Round "7"]
[White "chucksterf10"]
[Black "venturov"]
[Result "0-1"]
[WhiteElo "2573"]
[BlackElo "2452"]
[TimeControl "180+1"]
[EndTime "15:14:14 PST"]
[Termination "venturov won by resignation"]

1. a3 {[%clk 0:03:00.9]} 1... d5 {[%clk 0:02:55.3]} 2. Nf3 {[%clk 0:02:55.7]}
2... c5 {[%clk 0:02:53]} 3. e3 {[%clk 0:02:53]} 3... Nf6 {[%clk 0:02:52.4]} 4.
d4 {[%clk 0:02:51.9]} 4... e6 {[%clk 0:02:48.7]} 5. dxc5 {[%clk 0:02:52.1]} 5...
Bxc5 {[%clk 0:02:48.5]} 6. c4 {[%clk 0:02:52.8]} 6... O-O {[%clk 0:02:47.9]} 7.
b4 {[%clk 0:02:50.5]} 7... Be7 {[%clk 0:02:46.9]} 8. Bb2 {[%clk 0:02:50.8]} 8...
a5 {[%clk 0:02:38.3]} 9. b5 {[%clk 0:02:48.7]} 9... Nbd7 {[%clk 0:02:38]} 10.
Nbd2 {[%clk 0:02:47.3]} 10... Nc5 {[%clk 0:02:37.6]} 11. Be2 {[%clk 0:02:42.3]}
11... b6 {[%clk 0:02:25.1]} 12. O-O {[%clk 0:02:41.7]} 12... Bb7 {[%clk
0:02:24.1]} 13. Rc1 {[%clk 0:02:26.3]} 13... Rc8 {[%clk 0:01:49.5]} 14. Nd4
{[%clk 0:02:22]} 14... Qd7 {[%clk 0:01:45]} 15. N2f3 {[%clk 0:02:19.4]} 15...
Rfd8 {[%clk 0:01:45.3]} 16. h3 {[%clk 0:02:13.2]} 16... Qe8 {[%clk 0:01:45.4]}
17. Ne5 {[%clk 0:02:06.8]} 17... Bd6 {[%clk 0:01:39.3]} 18. Ndc6 {[%clk
0:02:05.3]} 18... Bxe5 {[%clk 0:01:35.6]} 19. Nxe5 {[%clk 0:01:57.8]} 19... dxc4
{[%clk 0:01:34.4]} 20. Qc2 {[%clk 0:01:55.8]} 20... Nd3 {[%clk 0:01:28.9]} 21.
Rcd1 {[%clk 0:01:44]} 21... Qxb5 {[%clk 0:01:20.8]} 22. Nxd3 {[%clk 0:01:36.4]}
22... cxd3 {[%clk 0:01:20.1]} 23. Bxd3 {[%clk 0:01:37.3]} 23... Qg5 {[%clk
0:00:47.2]} 24. f4 {[%clk 0:01:28]} 24... Rxc2 {[%clk 0:00:44.1]} 25. fxg5
{[%clk 0:01:28.2]} 25... Rxg2+ {[%clk 0:00:43.9]} 26. Kh1 {[%clk 0:01:28.7]}
26... Rxb2+ {[%clk 0:00:38.4]} 0-1

[Event "Late-Titled-Tuesday-Blitz-February-27-2024"]
[Site "Chess.com"]
[Date "2024.02.27"]
[Round "7"]
[White "BebeBonito2022"]
[Black "noblerone"]
[Result "0-1"]
[WhiteElo "2315"]
[BlackElo "2467"]
[TimeControl "180+1"]
[EndTime "15:14:14 PST"]
[Termination "noblerone won by resignation"]

1. d4 {[%clk 0:03:00.9]} 1... d5 {[%clk 0:02:59.8]} 2. c4 {[%clk 0:03:01.1]}
2... c6 {[%clk 0:03:00.3]} 3. Nc3 {[%clk 0:03:01.3]} 3... Nf6 {[%clk 0:03:00.7]}
4. e3 {[%clk 0:03:01.9]} 4... a6 {[%clk 0:03:00.5]} 5. Nf3 {[%clk 0:03:01.9]}
5... b5 {[%clk 0:03:00.4]} 6. b3 {[%clk 0:03:01.8]} 6... Bg4 {[%clk 0:02:59.7]}
7. Be2 {[%clk 0:03:02.1]} 7... e6 {[%clk 0:02:59.8]} 8. h3 {[%clk 0:03:01]} 8...
Bh5 {[%clk 0:02:55.8]} 9. g4 {[%clk 0:02:59]} 9... Bg6 {[%clk 0:02:47.5]} 10.
Ne5 {[%clk 0:02:59.3]} 10... Nfd7 {[%clk 0:02:47]} 11. cxd5 {[%clk 0:02:38]}
11... Nxe5 {[%clk 0:02:37.8]} 12. dxe5 {[%clk 0:02:37.8]} 12... cxd5 {[%clk
0:02:38]} 13. h4 {[%clk 0:02:18.3]} 13... h5 {[%clk 0:02:27.1]} 14. gxh5 {[%clk
0:01:58.5]} 14... Bf5 {[%clk 0:02:26.6]} 15. a4 {[%clk 0:01:59]} 15... Bb4
{[%clk 0:02:08.1]} 16. Bd2 {[%clk 0:01:58.1]} 16... Nc6 {[%clk 0:01:52.6]} 17.
axb5 {[%clk 0:01:50.8]} 17... Nxe5 {[%clk 0:01:52.2]} 18. bxa6 {[%clk
0:01:14.7]} 18... Nd3+ {[%clk 0:01:35.6]} 19. Kf1 {[%clk 0:01:14.9]} 19... Qf6
{[%clk 0:01:28.9]} 20. Qe1 {[%clk 0:00:28.7]} 0-1

[Event "Late-Titled-Tuesday-Blitz-February-27-2024"]
[Site "Chess.com"]
[Date "2024.02.27"]
[Round "7"]
[White "AlexeiShirov"]
[Black "manitodeplomo"]
[Result "1-0"]
[WhiteElo "2855"]
[BlackElo "2662"]
[TimeControl "180+1"]
[EndTime "15:14:23 PST"]
[Termination "AlexeiShirov won by resignation"]

1. e4 {[%clk 0:03:00.9]} 1... c5 {[%clk 0:02:59.1]} 2. Nf3 {[%clk 0:03:00.2]}
2... e6 {[%clk 0:02:59.7]} 3. d4 {[%clk 0:02:59.6]} 3... cxd4 {[%clk 0:03:00.6]}
4. Nxd4 {[%clk 0:02:59.7]} 4... a6 {[%clk 0:03:01.5]} 5. c4 {[%clk 0:02:58.6]}
5... Nf6 {[%clk 0:03:00.1]} 6. Nc3 {[%clk 0:02:58.5]} 6... Qc7 {[%clk
0:03:00.4]} 7. a3 {[%clk 0:02:54.7]} 7... b6 {[%clk 0:03:00.7]} 8. Be3 {[%clk
0:02:53]} 8... Bb7 {[%clk 0:03:00.7]} 9. f3 {[%clk 0:02:52.3]} 9... Nc6 {[%clk
0:03:01.1]} 10. Rc1 {[%clk 0:02:49]} 10... Ne5 {[%clk 0:03:00.8]} 11. Na4 {[%clk
0:02:34.2]} 11... Rb8 {[%clk 0:02:45.9]} 12. b4 {[%clk 0:02:25]} 12... Ng6
{[%clk 0:02:30.7]} 13. c5 {[%clk 0:02:20.4]} 13... b5 {[%clk 0:02:28.8]} 14. Nb6
{[%clk 0:02:18.4]} 14... Be7 {[%clk 0:02:18.8]} 15. a4 {[%clk 0:02:05.4]} 15...
bxa4 {[%clk 0:02:18]} 16. Qxa4 {[%clk 0:02:04.1]} 16... O-O {[%clk 0:02:17.7]}
17. Bxa6 {[%clk 0:01:50.2]} 17... Bxa6 {[%clk 0:00:47.8]} 18. Qxa6 {[%clk
0:01:48.7]} 18... d6 {[%clk 0:00:36.3]} 19. Nb5 {[%clk 0:01:39.4]} 19... Qc6
{[%clk 0:00:34.2]} 20. cxd6 {[%clk 0:01:34.8]} 20... Rxb6 {[%clk 0:00:22.2]} 21.
Rxc6 {[%clk 0:01:30.9]} 21... Rxa6 {[%clk 0:00:21.8]} 22. Rxa6 {[%clk
0:01:30.7]} 1-0